Cogmind - Beta 15 @@@ ROGUE MODE // 2025.05.17 @ 14:50:21 Player: Waste Result: Destroyed by YI-UF0 with YI-UF0's Doublenader Performance ------------- Evolutions (0) 0 Regions Visited (2) 400 Robots Destroyed (25) 125 Value Destroyed (494) 494 Prototype IDs (0) 0 Alien Tech Used (0) 0 Bonus (-66) -66 TOTAL SCORE: 953 Bonus ------- Friendly Fire -66 Cogmind --------- Core Integrity 0/250 Matter 286/300 Energy 122/250 System Corruption 0% Temperature Cool (16) Movement Treading (240) Ox1 Location -10/Mines Parts ------- > --- POWER (1) -------- Ion Engine > --- PROPULSION (2) --- Light Treads > --- UTILITY (2) ------ Improved Heat Sink Large Storage Unit > --- WEAPON (2) ------- Light Assault Rifle > --- INVENTORY (15) --- Light Ion Engine Light Treads Light Treads Light Treads Light Treads Improved Heat Sink Large Storage Unit Light Assault Rifle Light Assault Rifle Grenade Launcher Rocket Launcher Peak State ------------ > --- POWER ------------ Light Ion Engine > --- PROPULSION ------- Light Treads Light Treads > --- UTILITY ---------- Improved Heat Sink Large Storage Unit > --- WEAPON ----------- Particle Gun Light Assault Rifle > --- INVENTORY -------- Ion Engine Light Ion Engine Light Treads Light Treads Light Treads Light Treads Light Treads Large Storage Unit Light Assault Rifle Light Assault Rifle Grenade Launcher Rocket Launcher [Rating: 11] Favorites ----------- Power Light Ion Engine Engine Light Ion Engine Propulsion Light Treads Treads Light Treads Leg Aluminum Leg Utility Large Storage Unit Device Improved Heat Sink Storage Large Storage Unit Weapon Light Assault Rifle Energy Gun Medium Laser Ballistic Gun Light Assault Rifle Launcher Grenade Launcher Build | -11 -10 -10 ------- Run | Yrd Mat Min Slots Evolved . | . . . Power . | . . . Propulsion . | . . . Utility . | . . . Weapon . | . . . Parts Attached 19 | . 7 12 Power 3 | . 1 2 Engine 3 | . 1 2 Core . | . . . Reactor . | . . . Propulsion 8 | . 4 4 Treads 3 | . . 3 Leg 5 | . 4 1 Wheel . | . . . Hover . | . . . Flight . | . . . Utility 3 | . 1 2 Device 2 | . . 2 Storage 1 | . 1 . Processor . | . . . Hackware . | . . . Protection . | . . . Artifact . | . . . Weapon 5 | . 1 4 Energy Gun 1 | . . 1 Energy Cannon . | . . . Ballistic Gun 3 | . 1 2 Ballistic Cannon . | . . . Launcher 1 | . . 1 Special Weapon . | . . . Impact Weapon . | . . . Slashing Weapon . | . . . Piercing Weapon . | . . . Special Melee Weapon . | . . . Unidentified Prototypes . | . . . Parts Lost 8 | . 1 7 Power 2 | . . 2 Propulsion 2 | . . 2 Utility . | . . . Weapon 4 | . 1 3 Highest Loss Streak 5 | . 1 5 To Critical Strikes . | . . . Average Backups 11 | . 11 11 Power 2 | . 2 2 Propulsion 5 | . 6 5 Utility 1 | . 1 1 Weapon 2 | . 1 3 Tool/Special . | . . . Unused Backups 10 | . 2 8 Power . | . . . Propulsion 5 | . . 5 Utility 3 | . 2 1 Weapon 2 | . . 2 Tool/Special . | . . . Average Slot Usage (%) 92 | . 85 97 Engine 13 | . 14 12 Treads 15 | . . 26 Leg 12 | . 28 1 Device 7 | . . 13 Storage 14 | . 14 14 Energy Gun 8 | . 13 5 Ballistic Gun 19 | . 14 22 Peak Build Rating 11 | . 7 11 Average Rating 8 | . 6 10 On Entrance 6 | 6 6 7 Naked Turns . | . . . Heaviest Build 32 | 12 32 28 Greatest Support 40 | 20 20 40 Greatest Overweight (x) 1 | . 1 1 Average Overweight (x) . | . . . Largest Inventory Capacity 15 | . 15 15 Average Capacity 14 | . 14 15 Most Carried 15 | . 15 15 Average Carried 11 | . 12 11 Final Capacity 15 | 8 15 15 Final Carried 15 | 6 15 11 Class Distribution -------------------- 100% | Mutant Dominant Class ---------------- Mutant | -10/Materials Mutant | -10/Mines Resources | -11 -10 -10 ----------- Run | Yrd Mat Min Matter Collected 560 | 200 134 226 Remotely . | . . . Salvage Created 648 | . 362 286 Parts 58 | . 30 28 Haulers Intercepted 1 | . 1 . Recyclers Shooed 1 | . 1 . Parts Field Recycled . | . . . Retrieved Matter . | . . . Parts Self-Destructed . | . . . Prevented . | . . . Kills | -11 -10 -10 ------- Run | Yrd Mat Min Combat Hostiles Destroyed 22 | . 10 12 Guns 20 | . 10 10 AOE 2 | . . 2 Classes Destroyed 5 | . 5 . Worker 1 | . 1 . Hauler 1 | . 1 . Watcher 1 | . 1 . Swarmer 13 | . 5 8 Grunt 9 | . 5 4 Best Kill Streak 3 | . 3 3 Combat Bots Only 3 | . 3 3 Max Kills in Single Turn 1 | . 1 1 Gunslinging . | . . . Exploded 1 | . . 1 Melee . | . . . Uniques/NPCs Destroyed . | . . . Combat | -11 -10 -10 -------- Run | Yrd Mat Min Hostile Shots Fired 138 | . 47 91 Missed 38 | . 14 24 Hits 100 | . 33 67 Projectile 100 | . 33 67 AOE 17 | . . 17 Damage Taken 1453 | . 356 1097 Core 250 | . 37 213 Absorbed by Shields . | . . . Core Remaining (%) 100 | 100 . . Volleys Fired 83 | . 37 46 Largest 2 | . 2 2 Hottest 85 | . 70 85 Shots Fired 163 | . 74 89 Gun 161 | . 74 87 Cannon . | . . . Launcher 2 | . . 2 Special . | . . . Kinetic 112 | . 41 71 Thermal 49 | . 33 16 Explosive 2 | . . 2 Electromagnetic . | . . . Robot Hit Streak 11 | . 7 11 Robot Miss Streak 5 | . 3 5 Penetration Max . | . . . Secondary Targets 2 | . 1 1 Max Gunslinging Chain 1 | . 1 1 Shots Hit Robots 105 | . 45 60 Core Hits 45 | . 21 24 Critical Kills . | . . . Critical Parts Destroyed 1 | . 1 . Critical Strikes 6 | . 5 1 Burn 5 | . 4 1 Destroy 1 | . 1 . Melee Attacks . | . . . Impact . | . . . Slashing . | . . . Piercing . | . . . Sneak Attacks . | . . . Combat Hostiles . | . . . Follow-up Attacks . | . . . Damage Inflicted 1281 | . 573 708 Guns 1139 | . 573 566 Cannons . | . . . Explosions 118 | . . 118 Melee . | . . . Ramming 24 | . . 24 Kinetic 696 | . 304 392 Thermal 443 | . 269 174 Explosive 118 | . . 118 Electromagnetic . | . . . Impact . | . . . Slashing . | . . . Piercing . | . . . Highest Corruption . | . . . Average Corruption . | . . . Corruption Purged . | . . . Corruption Blocked . | . . . Overload Shots . | . . . Overflow Damage . | . . . Projectiles . | . . . Explosions . | . . . Melee . | . . . Knockbacks . | . . . Impact . | . . . Kinetic . | . . . Secondary . | . . . Self-Inflicted Damage 23 | . . 23 Shots 1 | . . 1 Rammed 4 | . . 4 Targets Rammed 5 | . 1 4 Kicked 1 | . 1 . Crushed . | . . . Highest Temperature 72 | . 72 25 Average Temperature 21 | . 25 10 Received Heat Transfer 360 | . 150 210 Siege Activations . | . . . Martial Activations . | . . . Shielding Activations . | . . . Robots Disrupted . | . . . Combat Hostiles . | . . . Robots Corrupted . | . . . Combat Hostiles . | . . . Parts Fried . | . . . Impact Corruptions . | . . . Robots Melted . | . . . Combat Hostiles . | . . . Parts Melted 2 | . 2 . Heat Transferred 1554 | . 1073 481 Parts Sabotaged . | . . . Parts Stolen . | . . . Parts Stripped . | . . . Power Chain Reactions . | . . . Alert | -11 -10 -10 ------- Run | Yrd Mat Min Maximum Alert Level . | . . . Low Security (%) 100 | . 100 100 Level 1 . | . . . Level 2 . | . . . Level 3 . | . . . Level 4 . | . . . Level 5 . | . . . High Security . | . . . Max Security . | . . . Peak Influence 116 | . 50 116 Initial 13 | . . 13 Average 28 | . 13 38 Influence Increases 598 | . 268 330 Destroy 0b10 Robot/C 440 | . 200 240 Destroy 0b10 Robot/NC 15 | . 15 . Destroy Leader 84 | . 34 50 Successful Hack 17 | . 17 . Destroy Structure 12 | . 2 10 Lose Combat Pursuer 30 | . . 30 Influence Decreases 598 | . 232 366 Entered New Map 23 | . . 23 Time Decay 542 | . 232 310 Lost Part 33 | . . 33 Squads Dispatched 2 | . 2 . Investigation . | . . . Extermination . | . . . Reinforcement 2 | . 2 . Assault . | . . . Garrison . | . . . Intercept . | . . . Searches Triggered . | . . . Construction Impeded . | . . . Haulers Reinforced . | . . . Active Scanning Responses . | . . . Cargo Convoy Interrupts . | . . . Stealth | -11 -10 -10 --------- Run | Yrd Mat Min Distress Signals 3 | . 3 . Communications Jammed . | . . . Distress Signals . | . . . Times Spotted 32 | . 17 15 Peak Tracking Total 3 | . 3 3 Tactical Retreats 1 | . . 1 Traps | -11 -10 -10 ------- Run | Yrd Mat Min Traps Triggered . | . . . Indirectly . | . . . Trap Hack Attempts . | . . . Triggered . | . . . Disarmed . | . . . Reprogrammed . | . . . Reused . | . . . Traps Extracted . | . . . Installed . | . . . Triggered . | . . . Machines | -11 -10 -10 ---------- Run | Yrd Mat Min Machines Disabled . | . . . Max in Single Turn . | . . . Machines Repaired . | . . . Machines Dismantled . | . . . Machines Sabotaged . | . . . Overloaded Fab Kills . | . . . Hacking | -11 -10 -10 --------- Run | Yrd Mat Min Machines Accessed 2 | . 2 . Terminals 2 | . 2 . Fabricators . | . . . Repair Stations . | . . . Recycling Units . | . . . Scanalyzers . | . . . Garrison Access . | . . . Total Hacks 6 | . 6 . Successful 3 | . 3 . Failed 3 | . 3 . Catastrophic . | . . . Database Lockouts . | . . . Manual 6 | . 6 . Terminals 6 | . 6 . Fabricators . | . . . Repair Stations . | . . . Recycling Units . | . . . Scanalyzers . | . . . Garrison Access . | . . . Terminal Hacks 3 | . 3 . Robot Analysis 2 | . 2 . Hauler Manifests 1 | . 1 . Fabricator Hacks . | . . . Repair Station Hacks . | . . . Recycling Unit Hacks . | . . . Scanalyzer . | . . . Garrison Access Hacks . | . . . Unauthorized Hacks . | . . . Terminals . | . . . Fabricators . | . . . Repair Stations . | . . . Recycling Units . | . . . Scanalyzers . | . . . Garrison Access . | . . . Data Cores Recovered . | . . . Used . | . . . Hacking Detections 2 | . 2 . Full Trace Events . | . . . Feedback Events . | . . . Feedback Blocked . | . . . Robot Schematics Acquired . | . . . Robots Built . | . . . Authchips . | . . . Time . | . . . Total Robot Build Rating . | . . . Part Schematics Acquired . | . . . Parts Built . | . . . Authchips . | . . . Time . | . . . Total Part Build Rating . | . . . Parts Repaired . | . . . Time . | . . . Parts Recycled . | . . . Recycled Matter . | . . . Retrieved Matter . | . . . Retrieved Components . | . . . Parts Scanalyzed . | . . . Part Schematics Acquired . | . . . Parts Damaged . | . . . Bothacking | -11 -10 -10 ------------ Run | Yrd Mat Min Used RIF Installer . | . . . Robots Hacked . | . . . Non-combat . | . . . Combat . | . . . Robot Hacks Applied . | . . . Relay Couplers Released . | . . . Fabnet Peak Effective % . | . . . Robots Rewired . | . . . Allies Hacked . | . . . Hacks Repelled . | . . . Allies | -11 -10 -10 -------- Run | Yrd Mat Min Total Allies . | . . . Largest Group . | . . . Highest-Rated Group . | . . . Highest-Rated Ally . | . . . Total Orders . | . . . Ally Attacks . | . . . Total Damage . | . . . Kills . | . . . Allies Corrupted . | . . . Allies Melted . | . . . Intel | -11 -10 -10 ------- Run | Yrd Mat Min Active Infowar (turns) . | . . . Robot Analysis Total 2 | . 2 . Derelict Logs Recovered 1 | . . 1 Drone Launches . | . . . Drone Recoveries . | . . . Exploration | -11 -10 -10 ------------- Run | Yrd Mat Min Turns Passed 1968 | . 807 1161 Spaces Moved 945 | 1 343 601 Core . | . . . Treads 595 | . . 595 Legs 350 | 1 343 6 Wheels . | . . . Hover . | . . . Flight . | . . . Fastest Speed 120 | 120 120 160 Average Speed 170 | 120 188 160 Slowest Speed 190 | 120 190 190 Overloaded Moves . | . . . Propulsion Burnouts . | . . . Robots Hopped . | . . . Potential Cave-ins . | . . . Cave-ins Triggered . | . . . Exploration Rate (%) 55 | 3 67 96 Regions Visited 2 Branch Regions 1 Pre-discovered Areas 1 | . . 1 Known Exits Taken . | . . . Unknown Exits Taken 2 | 1 1 . Scrap Searched 1 | . . 1 Spaces Dug . | . . . Terrain Destroyed 11 | . . 11 Melee . | . . . Projectile . | . . . AOE 11 | . . 11 Terrain Rammed . | . . . Walls Destroyed . | . . . Machines Disabled . | . . . Actions | -11 -10 -10 --------- Run | Yrd Mat Min Total 1149 | . 429 720 Wait 74 | . 29 45 Move 943 | . 342 601 Hop . | . . . Pick Up 12 | . 8 4 Fast Attach 2 | . 1 1 Attach 8 | . 1 7 Detach 1 | . 1 . Swap 11 | . 5 6 Drop 10 | . 4 6 Fire 83 | . 37 46 Melee . | . . . Ram . | . . . Kick 1 | . 1 . Crush 4 | . . 4 Escape Stasis . | . . . Rewire . | . . . Trap . | . . . Miscellaneous . | . . . Route ------- -11/Scrapyard -10/Materials (discovered 3 exits: [*Mat x2] / [*Min]) -10/Mines (discovered 2 exits: [*Mat x2]) History --------- Turn | Location | Event 1 | -11/Scrapyard | Discovered new exit (range 0) 1 | -11/Scrapyard | Entered Materials 272 | -10/Materials | Discovered new exit (range 3) 311 | -10/Materials | Build established: Mutant 454 | -10/Materials | Discovered new exit (range 8) 732 | -10/Materials | Discovered new exit (range 12) 808 | -10/Materials | Entered Mines 938 | -10/Mines | YI-UF0 nonchalantly dropped a Grenade Launcher on the ground 1211 | -10/Mines | Received a Rocket Launcher from a helpful Derelict 1242 | -10/Mines | Discovered new exit (range 9) 1506 | -10/Mines | Discovered new exit (range 9) 1529 | -10/Mines | Core integrity fell below 50% 1956 | -10/Mines | Core integrity fell below 20% 1969 | -10/Mines | Destroyed by YI-UF0 with YI-UF0's Doublenader Last Messages --------------- 01691_ Found Lrg. Battery. 01691_ Found Heat Sink. 01691_ Found Com. Wheel. 01691_ Found 40 Matter. 01692_ Acquired 11 matter. 01706_ T-07 Excavator is excavating. 01770_ U-05 Engineer builds a Wall. 01774_ T-07 Excavator is excavating. 01803_ Slammed into K-01 Serf. 01812_ K-01 Serf cleans the Pressure Siphon. 01829_ Slammed into T-07 Excavator. 01911_ K-01 Serf cleans the Pressure Siphon. 01931_ YI-UF0 mumbles something. 01947_ YI-UF0 suffers critical hit (Burn). 01949_ YI-UF0: "BOOM TO YOU TOO!" 01955_ Lgt. Ion Engine destroyed. 01963_ Lgt. Assault Rifle destroyed. 01963_ Lgt. Treads destroyed. 01969_ Particle Gun destroyed. 01969_ Lgt. Treads destroyed. Map ----- +----------------------------------------------------+ | | | | | | | | | | | | | | | | | | | | | | | | | | | | | | | | | | | ?????????????????????????????????????????? | | ?????????????????????????????????????????? | | ?????????????????????#####???????????????? | | ????????????????????## ###????????????? | | ????????????????????# ##?????###???? | | ????????????????????# #???## ##??? | | ##??????????????????# g #???# #??? | | ######?????????????# ##?## #???? | | #??????????????# @ ### #????? | | ## #??????????????# #????? | | ### #?????????????# # #??? | | ##?# #?????????????## #??? | | #??# #??????????????## #??? | | ???# #???????????????## #??? | | ???# ##???????????????## #??? | | ?### ##???????????????## ##??? | | ## ##???????????????# #???? | | # ##??????????????# # # # ???? | | #??????????????# #????? | | #??????????????# #########????? | | ##??????????????# #????????????? | | #####???????????????# ######???????? | | ##?????????????????### #???????? | | ##???????????????#### #???????? | | ##????????######## ##???????? | | ###??????# ##????????? | | ######## ###### ##?????????? | | # #????## ##??????????? | | #### #?????# ##???????????? | | ???## #######?????# ##????????????? | | ???## #???????????# ##????????????? | | ???# #????######## #????????????? | | ???# #????# ##???????????? | +----------------------------------------------------+ Best States ------------- Heat Dissipation 39 Energy Generation 10 Energy Capacity 250 Matter Stores 300 Matter Capacity 300 Sight Range 16 Terrain Scan Density 10 Evasion (%) 50 Recoil Reduction 2 Item Schematics ----------------- None Robot Schematics ------------------ None Fabricated ------------ Nothing Repaired ---------- Nothing Alien Tech Used ----------------- None Achievements -------------- None Challenges ------------ None Game ------ Seed TerrorPortableGreatsword Manual? 0 Play Time 00:09:25 Cumulative 350.6 hours Start 2025.05.17 @ 14:44:20 End 2025.05.17 @ 14:50:21 Sessions 1 Manual Loads 0 Difficulty Rogue Special Mode None Game No. 452 Rogue 452 Adventurer 0 Explorer 0 Win Type - Total 27 Types 12/1/8/1/1/1/0/1/1/1 Lore% 86 Gallery% 78 Achievement% 76 Wizard Run 0 Options --------- Layout 0 ASCII 0 Keyboard 0 Movement Numpad Keybinds 0 Fullscreen 1 Font 18/SmallcapsGlow Map View 76x50 Zoom Use 0% Tactical HUD 1 Map Filters NONE Filters NONE Steam 1 RUN: 2769ac53-7d82-436e-a9d9-e31fc948c185